[Event "*** Titled Tuesday Blitz"]
[Site "Chess.com"]
[Date "2021.03.16"]
[Round "9"]
[White "Unknown_IM"]
[Black "NoGuru"]
[Result "1-0"]
[WhiteElo "2406"]
[BlackElo "2285"]
[TimeControl "180+1"]
[EndTime "11:45:07 PDT"]
[Termination "Unknown_IM won on time"]

1. e4 {[%clk 0:03:00.9]} 1... c6 {[%clk 0:02:59.9]} 2. d4 {[%clk 0:03:00.5]}
2... d5 {[%clk 0:03:00.5]} 3. exd5 {[%clk 0:02:59.4]} 3... cxd5 {[%clk
0:03:00.4]} 4. Bd3 {[%clk 0:02:59.8]} 4... Nf6 {[%clk 0:03:00.3]} 5. h3 {[%clk
0:02:59.3]} 5... Nc6 {[%clk 0:02:56.8]} 6. c3 {[%clk 0:02:59.5]} 6... e5 {[%clk
0:02:51.5]} 7. dxe5 {[%clk 0:02:59]} 7... Nxe5 {[%clk 0:02:51.6]} 8. Nf3 {[%clk
0:02:59.4]} 8... Bd6 {[%clk 0:02:49.5]} 9. O-O {[%clk 0:02:58.6]} 9... O-O
{[%clk 0:02:49.3]} 10. Bg5 {[%clk 0:02:57.2]} 10... Nxd3 {[%clk 0:02:40.6]} 11.
Qxd3 {[%clk 0:02:54.8]} 11... h6 {[%clk 0:02:40.7]} 12. Bxf6 {[%clk 0:02:50.8]}
12... Qxf6 {[%clk 0:02:40.6]} 13. Qxd5 {[%clk 0:02:50.8]} 13... Bd7 {[%clk
0:02:21.7]} 14. Nbd2 {[%clk 0:02:23.4]} 14... Bc6 {[%clk 0:02:19.5]} 15. Qh5
{[%clk 0:02:22.1]} 15... Rfe8 {[%clk 0:01:50.4]} 16. Rfe1 {[%clk 0:02:19.2]}
16... Bf4 {[%clk 0:01:49.9]} 17. Qg4 {[%clk 0:02:12.5]} 17... g6 {[%clk
0:01:43.3]} 18. Nb3 {[%clk 0:01:56.1]} 18... Kg7 {[%clk 0:01:08.8]} 19. Nbd4
{[%clk 0:01:51.5]} 19... Bd5 {[%clk 0:01:00.5]} 20. Nh4 {[%clk 0:01:40]} 20...
Bg5 {[%clk 0:00:49.5]} 21. Nhf3 {[%clk 0:01:24.4]} 21... Bf4 {[%clk 0:00:48.4]}
22. Rxe8 {[%clk 0:01:06.7]} 22... Rxe8 {[%clk 0:00:47]} 23. Qd7 {[%clk 0:01:07]}
23... Rd8 {[%clk 0:00:40.7]} 24. Qa4 {[%clk 0:00:54.8]} 24... Bb8 {[%clk
0:00:39.9]} 25. Re1 {[%clk 0:00:52.7]} 25... Qf4 {[%clk 0:00:35.6]} 26. Qa5
{[%clk 0:00:29.1]} 26... b6 {[%clk 0:00:27.1]} 27. Qb5 {[%clk 0:00:24.3]} 27...
h5 {[%clk 0:00:23]} 28. Qf1 {[%clk 0:00:14.9]} 28... g5 {[%clk 0:00:21.6]} 29.
g3 {[%clk 0:00:13.1]} 29... Qf6 {[%clk 0:00:21.1]} 30. Qd3 {[%clk 0:00:11.9]}
30... h4 {[%clk 0:00:19.9]} 31. Qe3 {[%clk 0:00:10.1]} 31... hxg3 {[%clk
0:00:18.3]} 32. Qxg5+ {[%clk 0:00:10.3]} 32... Qxg5 {[%clk 0:00:18.2]} 33. Nxg5
{[%clk 0:00:11.2]} 33... gxf2+ {[%clk 0:00:17.9]} 34. Kxf2 {[%clk 0:00:12.1]}
34... Bd6 {[%clk 0:00:14.9]} 35. Ngf3 {[%clk 0:00:11.3]} 35... Bc5 {[%clk
0:00:14.4]} 36. Rg1+ {[%clk 0:00:11.1]} 36... Kf8 {[%clk 0:00:13.7]} 37. Rg5
{[%clk 0:00:10.6]} 37... Bxa2 {[%clk 0:00:12.2]} 38. h4 {[%clk 0:00:09]} 38...
Be7 {[%clk 0:00:10.9]} 39. Rg4 {[%clk 0:00:08.8]} 39... Bb1 {[%clk 0:00:10.8]}
40. h5 {[%clk 0:00:08.8]} 40... Rd6 {[%clk 0:00:09]} 41. Kg3 {[%clk 0:00:06.2]}
41... Rh6 {[%clk 0:00:08.3]} 42. Ne5 {[%clk 0:00:02.7]} 42... Rxh5 {[%clk
0:00:06.2]} 43. Nec6 {[%clk 0:00:03.1]} 43... Bd6+ {[%clk 0:00:05.6]} 44. Kf2
{[%clk 0:00:03.6]} 44... Rh2+ {[%clk 0:00:04.7]} 45. Rg2 {[%clk 0:00:03.9]}
45... Rxg2+ {[%clk 0:00:03]} 46. Kxg2 {[%clk 0:00:04.8]} 1-0

[Event "*** Titled Tuesday Blitz"]
[Site "Chess.com"]
[Date "2021.03.16"]
[Round "9"]
[White "CrazyMartian"]
[Black "Shuvalov"]
[Result "1/2-1/2"]
[WhiteElo "2273"]
[BlackElo "2481"]
[TimeControl "180+1"]
[EndTime "11:45:08 PDT"]
[Termination "Game drawn by repetition"]

1. d4 {[%clk 0:03:00.9]} 1... Nf6 {[%clk 0:02:54.1]} 2. c4 {[%clk 0:03:00.4]}
2... g6 {[%clk 0:02:53.9]} 3. Nc3 {[%clk 0:03:00.1]} 3... d5 {[%clk 0:02:54]} 4.
cxd5 {[%clk 0:02:59.7]} 4... Nxd5 {[%clk 0:02:54.9]} 5. e4 {[%clk 0:02:59.6]}
5... Nxc3 {[%clk 0:02:55]} 6. bxc3 {[%clk 0:03:00.5]} 6... Bg7 {[%clk
0:02:55.5]} 7. Be3 {[%clk 0:03:00.8]} 7... c5 {[%clk 0:02:55.2]} 8. Rc1 {[%clk
0:03:01.3]} 8... cxd4 {[%clk 0:02:49.6]} 9. cxd4 {[%clk 0:03:00.9]} 9... O-O
{[%clk 0:02:44.4]} 10. Nf3 {[%clk 0:03:00.2]} 10... b6 {[%clk 0:02:39.7]} 11.
Qd2 {[%clk 0:02:35.7]} 11... Bb7 {[%clk 0:02:38.1]} 12. Bd3 {[%clk 0:02:32.7]}
12... Nd7 {[%clk 0:02:07.8]} 13. O-O {[%clk 0:02:29.4]} 13... Nf6 {[%clk
0:02:05.5]} 14. Qc2 {[%clk 0:01:24.8]} 14... Rc8 {[%clk 0:01:53.5]} 15. Qb1
{[%clk 0:01:23.1]} 15... Qd7 {[%clk 0:01:28.6]} 16. h3 {[%clk 0:01:19.2]} 16...
Qa4 {[%clk 0:01:24.5]} 17. Ne5 {[%clk 0:01:04.1]} 17... Ba6 {[%clk 0:00:46.4]}
18. Bxa6 {[%clk 0:00:55]} 18... Qxa6 {[%clk 0:00:47.3]} 19. f3 {[%clk
0:00:51.6]} 19... b5 {[%clk 0:00:44.6]} 20. Qb3 {[%clk 0:00:39.8]} 20... Qb7
{[%clk 0:00:37.6]} 21. Rxc8 {[%clk 0:00:35.9]} 21... Qxc8 {[%clk 0:00:35]} 22.
Qxb5 {[%clk 0:00:33.7]} 22... Qc2 {[%clk 0:00:31.7]} 23. Rf2 {[%clk 0:00:20.6]}
23... Qd1+ {[%clk 0:00:29.6]} 24. Qf1 {[%clk 0:00:20.4]} 24... Qa4 {[%clk
0:00:29.1]} 25. Qc1 {[%clk 0:00:18.2]} 25... Nd7 {[%clk 0:00:26.5]} 26. Nxd7
{[%clk 0:00:17.3]} 26... Qxd7 {[%clk 0:00:27.4]} 27. d5 {[%clk 0:00:17]} 27...
e6 {[%clk 0:00:26.9]} 28. Rd2 {[%clk 0:00:16.6]} 28... Rc8 {[%clk 0:00:21.6]}
29. Qd1 {[%clk 0:00:16]} 29... exd5 {[%clk 0:00:19.2]} 30. Rxd5 {[%clk
0:00:16.9]} 30... Qe7 {[%clk 0:00:18.7]} 31. Rd7 {[%clk 0:00:16.4]} 31... Qe8
{[%clk 0:00:16.7]} 32. Bxa7 {[%clk 0:00:13.9]} 32... Bb2 {[%clk 0:00:15.2]} 33.
Kh2 {[%clk 0:00:11.6]} 33... Qe5+ {[%clk 0:00:14.5]} 34. g3 {[%clk 0:00:10.5]}
34... Kg7 {[%clk 0:00:13.5]} 35. Bd4 {[%clk 0:00:09]} 35... Bxd4 {[%clk
0:00:12.3]} 36. Qxd4 {[%clk 0:00:08.8]} 36... Rc2+ {[%clk 0:00:12.1]} 37. Kg1
{[%clk 0:00:08.2]} 37... Qxd4+ {[%clk 0:00:12.4]} 38. Rxd4 {[%clk 0:00:08.7]}
38... Rxa2 {[%clk 0:00:13.3]} 39. g4 {[%clk 0:00:05.8]} 39... g5 {[%clk
0:00:12.9]} 40. Rd5 {[%clk 0:00:05.4]} 40... h6 {[%clk 0:00:13]} 41. Rf5 {[%clk
0:00:03.9]} 41... Kg6 {[%clk 0:00:13.1]} 42. Rd5 {[%clk 0:00:03.9]} 42... Kf6
{[%clk 0:00:12.1]} 43. Rf5+ {[%clk 0:00:03.9]} 43... Ke6 {[%clk 0:00:12.3]} 44.
Rd5 {[%clk 0:00:04.8]} 44... f6 {[%clk 0:00:12.2]} 45. Rf5 {[%clk 0:00:04.8]}
45... Rd2 {[%clk 0:00:11.4]} 46. Rb5 {[%clk 0:00:04.4]} 46... Rc2 {[%clk
0:00:11.4]} 47. Ra5 {[%clk 0:00:04.4]} 47... Rd2 {[%clk 0:00:11.5]} 48. Rb5
{[%clk 0:00:04.7]} 48... Rc2 {[%clk 0:00:11.8]} 49. Ra5 {[%clk 0:00:05]} 49...
Rb2 {[%clk 0:00:12]} 50. Rc5 {[%clk 0:00:05.1]} 50... Ra2 {[%clk 0:00:12.1]} 51.
Rb5 {[%clk 0:00:05.2]} 51... Rc2 {[%clk 0:00:12.1]} 1/2-1/2

[Event "*** Titled Tuesday Blitz"]
[Site "Chess.com"]
[Date "2021.03.16"]
[Round "9"]
[White "canary2016"]
[Black "abeljusto"]
[Result "1-0"]
[WhiteElo "2014"]
[BlackElo "2140"]
[TimeControl "180+1"]
[EndTime "11:45:08 PDT"]
[Termination "canary2016 won on time"]

1. d4 {[%clk 0:03:00.9]} 1... Nf6 {[%clk 0:03:00.9]} 2. c4 {[%clk 0:03:00.1]}
2... c5 {[%clk 0:02:55]} 3. d5 {[%clk 0:02:59.3]} 3... b5 {[%clk 0:02:54.7]} 4.
e3 {[%clk 0:02:58.7]} 4... g6 {[%clk 0:02:49.6]} 5. cxb5 {[%clk 0:02:58.6]} 5...
Bg7 {[%clk 0:02:48.8]} 6. Nc3 {[%clk 0:02:57.8]} 6... O-O {[%clk 0:02:47.9]} 7.
Nf3 {[%clk 0:02:57.4]} 7... a6 {[%clk 0:02:48.3]} 8. Bd3 {[%clk 0:02:42.8]} 8...
Qa5 {[%clk 0:02:47.1]} 9. O-O {[%clk 0:02:38.4]} 9... axb5 {[%clk 0:02:37.5]}
10. Bxb5 {[%clk 0:02:32.9]} 10... Bb7 {[%clk 0:02:37]} 11. Bc4 {[%clk
0:02:23.2]} 11... d6 {[%clk 0:02:30.9]} 12. Qb3 {[%clk 0:02:18.5]} 12... Ba6
{[%clk 0:02:21.4]} 13. Bd2 {[%clk 0:02:07.3]} 13... Bxc4 {[%clk 0:02:03.1]} 14.
Qxc4 {[%clk 0:02:06.6]} 14... Na6 {[%clk 0:01:58.2]} 15. Ne4 {[%clk 0:01:43.5]}
15... Qb6 {[%clk 0:01:53.8]} 16. Bc3 {[%clk 0:01:32.6]} 16... Rfb8 {[%clk
0:01:40]} 17. h3 {[%clk 0:01:19.5]} 17... Qb7 {[%clk 0:01:33.2]} 18. Nfd2 {[%clk
0:01:04.3]} 18... Nxd5 {[%clk 0:01:26.3]} 19. Bxg7 {[%clk 0:00:54.4]} 19... Kxg7
{[%clk 0:01:26.2]} 20. Nb3 {[%clk 0:00:51.1]} 20... Nac7 {[%clk 0:01:02.5]} 21.
Rfd1 {[%clk 0:00:41.6]} 21... Qb4 {[%clk 0:00:42]} 22. Qc2 {[%clk 0:00:28.4]}
22... c4 {[%clk 0:00:39.1]} 23. Nd4 {[%clk 0:00:16.6]} 23... Qxb2 {[%clk
0:00:28]} 24. Qxc4 {[%clk 0:00:16.4]} 24... Rb4 {[%clk 0:00:22.6]} 25. Qc2
{[%clk 0:00:13.4]} 25... Qxc2 {[%clk 0:00:21.4]} 26. Nxc2 {[%clk 0:00:13.4]}
26... Rb2 {[%clk 0:00:21.5]} 27. Rdc1 {[%clk 0:00:07.5]} 27... Raxa2 {[%clk
0:00:20.8]} 28. Rxa2 {[%clk 0:00:07]} 28... Rxa2 {[%clk 0:00:21.7]} 29. Nd4
{[%clk 0:00:07.1]} 29... f5 {[%clk 0:00:17.7]} 30. Nc3 {[%clk 0:00:05.2]} 30...
Nxc3 {[%clk 0:00:16.8]} 31. Rxc3 {[%clk 0:00:05.2]} 31... Nd5 {[%clk 0:00:17]}
32. Rc8 {[%clk 0:00:04.5]} 32... Kf6 {[%clk 0:00:16.6]} 33. Rh8 {[%clk
0:00:03.8]} 33... h5 {[%clk 0:00:15.8]} 34. Rd8 {[%clk 0:00:03.5]} 34... Ke5
{[%clk 0:00:12.7]} 35. Rc8 {[%clk 0:00:03.6]} 35... Ra1+ {[%clk 0:00:11]} 36.
Kh2 {[%clk 0:00:03.2]} 36... Ra2 {[%clk 0:00:11.4]} 37. Rg8 {[%clk 0:00:03.2]}
37... Rxf2 {[%clk 0:00:10]} 38. Rxg6 {[%clk 0:00:03.3]} 38... Nf6 {[%clk
0:00:09]} 39. Nf3+ {[%clk 0:00:03.2]} 39... Ke4 {[%clk 0:00:07.6]} 40. Rg5
{[%clk 0:00:03.5]} 40... Kxe3 {[%clk 0:00:06.5]} 41. Rxf5 {[%clk 0:00:03.8]}
41... d5 {[%clk 0:00:06.7]} 42. Rxh5 {[%clk 0:00:03.7]} 42... d4 {[%clk
0:00:06.6]} 43. Ra5 {[%clk 0:00:02.5]} 43... d3 {[%clk 0:00:06.2]} 44. Ra3
{[%clk 0:00:02.5]} 44... Ke4 {[%clk 0:00:05.2]} 45. Ng5+ {[%clk 0:00:01.9]}
45... Kf5 {[%clk 0:00:04.8]} 46. Nf3 {[%clk 0:00:02.1]} 46... d2 {[%clk
0:00:04.3]} 47. Rd3 {[%clk 0:00:02.3]} 47... Ne4 {[%clk 0:00:03.8]} 48. Rd8
{[%clk 0:00:02.4]} 48... e5 {[%clk 0:00:03.3]} 49. Nh4+ {[%clk 0:00:02]} 49...
Ke6 {[%clk 0:00:02.7]} 50. Nf3 {[%clk 0:00:02.3]} 50... Nc3 {[%clk 0:00:01.3]}
51. Rxd2 {[%clk 0:00:02.1]} 1-0

[Event "*** Titled Tuesday Blitz"]
[Site "Chess.com"]
[Date "2021.03.16"]
[Round "9"]
[White "GameOverBro"]
[Black "organdzievhren"]
[Result "1-0"]
[WhiteElo "2524"]
[BlackElo "2423"]
[TimeControl "180+1"]
[EndTime "11:45:09 PDT"]
[Termination "GameOverBro won on time"]

1. e4 {[%clk 0:03:00.9]} 1... e6 {[%clk 0:02:56.3]} 2. d4 {[%clk 0:03:00.5]}
2... d5 {[%clk 0:02:56.6]} 3. Nd2 {[%clk 0:03:00.5]} 3... dxe4 {[%clk
0:02:57.2]} 4. Nxe4 {[%clk 0:03:01.4]} 4... Bd7 {[%clk 0:02:57.7]} 5. Nf3 {[%clk
0:03:01.2]} 5... Bc6 {[%clk 0:02:58.1]} 6. Bd3 {[%clk 0:03:01.8]} 6... Nd7
{[%clk 0:02:58.6]} 7. O-O {[%clk 0:03:01.8]} 7... Be7 {[%clk 0:02:59]} 8. Ned2
{[%clk 0:03:02.4]} 8... Ngf6 {[%clk 0:02:59.3]} 9. Nc4 {[%clk 0:03:02.6]} 9...
O-O {[%clk 0:02:57.3]} 10. Qe2 {[%clk 0:02:57.8]} 10... Bxf3 {[%clk 0:02:56.9]}
11. Qxf3 {[%clk 0:02:57.6]} 11... c6 {[%clk 0:02:57.2]} 12. Rd1 {[%clk
0:02:50.2]} 12... b5 {[%clk 0:02:52.8]} 13. Ne5 {[%clk 0:02:48.4]} 13... Nxe5
{[%clk 0:02:52.7]} 14. dxe5 {[%clk 0:02:47.9]} 14... Nd5 {[%clk 0:02:52.8]} 15.
c4 {[%clk 0:02:46.7]} 15... bxc4 {[%clk 0:02:52.4]} 16. Bxc4 {[%clk 0:02:46.6]}
16... Qb8 {[%clk 0:02:43.7]} 17. Qe4 {[%clk 0:02:40.4]} 17... Rd8 {[%clk
0:02:38.6]} 18. Re1 {[%clk 0:02:11.2]} 18... a5 {[%clk 0:02:26]} 19. b3 {[%clk
0:02:07.5]} 19... a4 {[%clk 0:02:24.2]} 20. Bb2 {[%clk 0:01:46.5]} 20... Qb6
{[%clk 0:02:11.6]} 21. Rac1 {[%clk 0:01:41.8]} 21... Bc5 {[%clk 0:01:59.8]} 22.
Qc2 {[%clk 0:01:41.1]} 22... Bd4 {[%clk 0:01:47.4]} 23. Bxd4 {[%clk 0:01:36.7]}
23... Qxd4 {[%clk 0:01:47.3]} 24. bxa4 {[%clk 0:01:25.5]} 24... Qg4 {[%clk
0:01:17.2]} 25. Re4 {[%clk 0:01:09.4]} 25... Qg6 {[%clk 0:01:09.7]} 26. Bd3
{[%clk 0:00:49.2]} 26... Qg5 {[%clk 0:00:45.2]} 27. Rce1 {[%clk 0:00:39.4]}
27... g6 {[%clk 0:00:38.1]} 28. g3 {[%clk 0:00:38.2]} 28... Ne7 {[%clk
0:00:29.3]} 29. h4 {[%clk 0:00:37.5]} 29... Qh6 {[%clk 0:00:28.8]} 30. Rf4
{[%clk 0:00:26.7]} 30... Nd5 {[%clk 0:00:26]} 31. Rc4 {[%clk 0:00:26.7]} 31...
Nb6 {[%clk 0:00:22.4]} 32. Rxc6 {[%clk 0:00:25.1]} 32... Nxa4 {[%clk 0:00:22.5]}
33. Be4 {[%clk 0:00:22.6]} 33... Ra5 {[%clk 0:00:16.9]} 34. Bf3 {[%clk
0:00:21.7]} 34... Qd2 {[%clk 0:00:10.6]} 35. Re2 {[%clk 0:00:11.7]} 35... Qd4
{[%clk 0:00:07.1]} 36. Rc8 {[%clk 0:00:09.9]} 36... Ra8 {[%clk 0:00:05.7]} 37.
Rxa8 {[%clk 0:00:09.5]} 37... Rxa8 {[%clk 0:00:05.3]} 38. Bxa8 {[%clk
0:00:09.2]} 38... Nc3 {[%clk 0:00:06.2]} 39. Re3 {[%clk 0:00:08.6]} 39... Nb5
{[%clk 0:00:04]} 40. Bf3 {[%clk 0:00:08.8]} 40... Qa1+ {[%clk 0:00:03.8]} 41.
Kg2 {[%clk 0:00:09]} 41... Nd4 {[%clk 0:00:04.6]} 42. Qd3 {[%clk 0:00:06.3]}
42... Nf5 {[%clk 0:00:03.7]} 43. Re4 {[%clk 0:00:06]} 43... Qxa2 {[%clk
0:00:02.9]} 44. Rf4 {[%clk 0:00:05.9]} 44... Kg7 {[%clk 0:00:02.7]} 45. h5
{[%clk 0:00:05.1]} 45... g5 {[%clk 0:00:01.8]} 46. Rxf5 {[%clk 0:00:04.8]} 46...
exf5 {[%clk 0:00:02.2]} 47. Qxf5 {[%clk 0:00:05.7]} 47... h6 {[%clk 0:00:02.2]}
48. Qf6+ {[%clk 0:00:05.8]} 48... Kg8 {[%clk 0:00:02.7]} 49. Be4 {[%clk
0:00:05.2]} 49... Qd2 {[%clk 0:00:01.2]} 50. Bf5 {[%clk 0:00:04.4]} 1-0

[Event "*** Titled Tuesday Blitz"]
[Site "Chess.com"]
[Date "2021.03.16"]
[Round "9"]
[White "zmeeed67"]
[Black "AttackSparrow"]
[Result "1-0"]
[WhiteElo "2439"]
[BlackElo "2502"]
[TimeControl "180+1"]
[EndTime "11:45:09 PDT"]
[Termination "zmeeed67 won by checkmate"]

1. d4 {[%clk 0:03:00.9]} 1... Nf6 {[%clk 0:02:59.5]} 2. c4 {[%clk 0:03:01.3]}
2... g6 {[%clk 0:02:58.2]} 3. Nc3 {[%clk 0:03:01.7]} 3... d5 {[%clk 0:02:58.8]}
4. Bf4 {[%clk 0:03:01.9]} 4... Bg7 {[%clk 0:02:58.4]} 5. e3 {[%clk 0:03:02.4]}
5... O-O {[%clk 0:02:58.1]} 6. cxd5 {[%clk 0:03:02.8]} 6... Nxd5 {[%clk
0:02:57.9]} 7. Nxd5 {[%clk 0:03:03.7]} 7... Qxd5 {[%clk 0:02:58.4]} 8. Bxc7
{[%clk 0:03:04.6]} 8... Nc6 {[%clk 0:02:54]} 9. Ne2 {[%clk 0:03:03.6]} 9... Bg4
{[%clk 0:02:46]} 10. f3 {[%clk 0:03:03.7]} 10... Rac8 {[%clk 0:02:28.6]} 11. Nc3
{[%clk 0:02:45.6]} 11... Qe6 {[%clk 0:02:15.5]} 12. Bf4 {[%clk 0:02:44.7]} 12...
Nxd4 {[%clk 0:01:53.3]} 13. fxg4 {[%clk 0:02:40.2]} 13... f5 {[%clk 0:01:45.1]}
14. Be2 {[%clk 0:02:28.9]} 14... Nxe2 {[%clk 0:01:43.9]} 15. Qxe2 {[%clk
0:02:27.1]} 15... Rxc3 {[%clk 0:01:37.8]} 16. bxc3 {[%clk 0:02:27.2]} 16...
Bxc3+ {[%clk 0:01:38.7]} 17. Kf2 {[%clk 0:02:28]} 17... Bxa1 {[%clk 0:01:34.8]}
18. Rxa1 {[%clk 0:02:28.9]} 18... fxg4 {[%clk 0:01:35.2]} 19. Kg1 {[%clk
0:02:25.2]} 19... g5 {[%clk 0:01:35.5]} 20. Bg3 {[%clk 0:02:24.9]} 20... h5
{[%clk 0:01:33.4]} 21. Rf1 {[%clk 0:02:01.9]} 21... Rxf1+ {[%clk 0:01:32.2]} 22.
Kxf1 {[%clk 0:02:02.8]} 22... h4 {[%clk 0:01:31.8]} 23. Be1 {[%clk 0:01:59.5]}
23... Qf5+ {[%clk 0:01:31.7]} 24. Qf2 {[%clk 0:01:50.1]} 24... Qd3+ {[%clk
0:01:28]} 25. Kg1 {[%clk 0:01:50.2]} 25... Qb1 {[%clk 0:01:17]} 26. Qd2 {[%clk
0:01:39]} 26... Kh7 {[%clk 0:01:09.2]} 27. Kf1 {[%clk 0:01:35.3]} 27... Qf5+
{[%clk 0:01:05.1]} 28. Ke2 {[%clk 0:01:32.7]} 28... h3 {[%clk 0:01:03.6]} 29.
Qd3 {[%clk 0:00:39]} 29... Qxd3+ {[%clk 0:00:59.8]} 30. Kxd3 {[%clk 0:00:39.9]}
30... hxg2 {[%clk 0:01:00.6]} 31. Bf2 {[%clk 0:00:40.7]} 31... Kg6 {[%clk
0:00:59.7]} 32. Ke2 {[%clk 0:00:40]} 32... Kf5 {[%clk 0:00:59.4]} 33. Bg1 {[%clk
0:00:40.5]} 33... g3 {[%clk 0:00:52.7]} 34. Kf3 {[%clk 0:00:37.9]} 34... gxh2
{[%clk 0:00:51.8]} 35. Bxh2 {[%clk 0:00:38.8]} 35... g4+ {[%clk 0:00:50.7]} 36.
Kxg2 {[%clk 0:00:39]} 36... Ke4 {[%clk 0:00:51.1]} 37. Bf4 {[%clk 0:00:21.6]}
37... a5 {[%clk 0:00:48.4]} 38. Kg3 {[%clk 0:00:22]} 38... Kf5 {[%clk
0:00:48.6]} 39. Bc7 {[%clk 0:00:19.4]} 39... a4 {[%clk 0:00:48.7]} 40. Bb6
{[%clk 0:00:13.1]} 40... e6 {[%clk 0:00:47.1]} 41. Kh4 {[%clk 0:00:06.5]} 41...
e5 {[%clk 0:00:41.9]} 42. a3 {[%clk 0:00:05.7]} 42... Ke4 {[%clk 0:00:27.6]} 43.
Kxg4 {[%clk 0:00:05.8]} 43... Kd5 {[%clk 0:00:28.5]} 44. Kf5 {[%clk 0:00:03.6]}
44... Kc6 {[%clk 0:00:28.6]} 45. Bd8 {[%clk 0:00:02.6]} 45... Kd5 {[%clk
0:00:29.5]} 46. Bf6 {[%clk 0:00:02.3]} 46... Kd6 {[%clk 0:00:30.4]} 47. Bxe5+
{[%clk 0:00:02.3]} 47... Kd5 {[%clk 0:00:31.3]} 48. Bg7 {[%clk 0:00:02.6]} 48...
b5 {[%clk 0:00:32.2]} 49. Bf8 {[%clk 0:00:03.1]} 49... Kc4 {[%clk 0:00:33.1]}
50. Bb4 {[%clk 0:00:03.5]} 50... Kd5 {[%clk 0:00:33.6]} 51. e4+ {[%clk
0:00:04.4]} 51... Kc6 {[%clk 0:00:34.4]} 52. e5 {[%clk 0:00:05.3]} 52... Kd5
{[%clk 0:00:35.3]} 53. e6 {[%clk 0:00:06.2]} 53... Kc4 {[%clk 0:00:36.1]} 54. e7
{[%clk 0:00:06.4]} 54... Kb3 {[%clk 0:00:37]} 55. e8=Q {[%clk 0:00:06.8]} 55...
Kc2 {[%clk 0:00:37.9]} 56. Qxb5 {[%clk 0:00:06.9]} 56... Kb3 {[%clk 0:00:38.8]}
57. Qa5 {[%clk 0:00:06.1]} 57... Kc4 {[%clk 0:00:39.7]} 58. Qxa4 {[%clk
0:00:06.3]} 58... Kd5 {[%clk 0:00:39.7]} 59. Qb3+ {[%clk 0:00:06.5]} 59... Kc6
{[%clk 0:00:40]} 60. Qc4+ {[%clk 0:00:06.6]} 60... Kb6 {[%clk 0:00:40.4]} 61.
Qc5+ {[%clk 0:00:06.6]} 61... Ka6 {[%clk 0:00:41.3]} 62. Qc6+ {[%clk 0:00:06.8]}
62... Ka7 {[%clk 0:00:41.1]} 63. Bc5+ {[%clk 0:00:07.1]} 63... Kb8 {[%clk
0:00:41.5]} 64. Qd7 {[%clk 0:00:05]} 64... Ka8 {[%clk 0:00:42.4]} 65. Qa7#
{[%clk 0:00:05.9]} 1-0

[Event "*** Titled Tuesday Blitz"]
[Site "Chess.com"]
[Date "2021.03.16"]
[Round "9"]
[White "Forantes"]
[Black "Joker_Gumble"]
[Result "1-0"]
[WhiteElo "2416"]
[BlackElo "2326"]
[TimeControl "180+1"]
[EndTime "11:45:10 PDT"]
[Termination "Forantes won on time"]

1. Nf3 {[%clk 0:03:00.9]} 1... d5 {[%clk 0:02:44.3]} 2. g3 {[%clk 0:02:52.6]}
2... c6 {[%clk 0:02:39.2]} 3. Bg2 {[%clk 0:02:52.6]} 3... e6 {[%clk 0:02:37.1]}
4. O-O {[%clk 0:02:52.7]} 4... f5 {[%clk 0:02:37.6]} 5. d3 {[%clk 0:02:51.1]}
5... Nf6 {[%clk 0:02:37.4]} 6. Nbd2 {[%clk 0:02:50.8]} 6... Bd6 {[%clk
0:02:37.9]} 7. Re1 {[%clk 0:02:51.2]} 7... O-O {[%clk 0:02:24.4]} 8. e4 {[%clk
0:02:51]} 8... Bc7 {[%clk 0:02:07.7]} 9. c3 {[%clk 0:01:55.6]} 9... fxe4 {[%clk
0:01:52.8]} 10. dxe4 {[%clk 0:01:54.6]} 10... Na6 {[%clk 0:01:40]} 11. b3 {[%clk
0:01:41.5]} 11... Nc5 {[%clk 0:01:31.2]} 12. Ba3 {[%clk 0:01:34.9]} 12... b6
{[%clk 0:01:30.4]} 13. Nd4 {[%clk 0:01:18]} 13... Bd7 {[%clk 0:00:59.3]} 14. e5
{[%clk 0:01:18.1]} 14... Ne8 {[%clk 0:00:49.9]} 15. f4 {[%clk 0:01:14.8]} 15...
g6 {[%clk 0:00:48.6]} 16. N2f3 {[%clk 0:01:09]} 16... Ng7 {[%clk 0:00:47.5]} 17.
c4 {[%clk 0:00:58.6]} 17... Re8 {[%clk 0:00:40.1]} 18. Rc1 {[%clk 0:00:57.3]}
18... Ne4 {[%clk 0:00:25.5]} 19. Nd2 {[%clk 0:00:43.1]} 19... Nxd2 {[%clk
0:00:20.6]} 20. Qxd2 {[%clk 0:00:44]} 20... c5 {[%clk 0:00:21.5]} 21. cxd5
{[%clk 0:00:25.8]} 21... cxd4 {[%clk 0:00:17.9]} 22. d6 {[%clk 0:00:26.1]} 22...
Rc8 {[%clk 0:00:16.7]} 23. dxc7 {[%clk 0:00:23.9]} 23... Rxc7 {[%clk 0:00:17.6]}
24. Qxd4 {[%clk 0:00:24.5]} 24... Rxc1 {[%clk 0:00:11]} 25. Rxc1 {[%clk
0:00:24]} 25... Bb5 {[%clk 0:00:09.1]} 26. Qxd8 {[%clk 0:00:05]} 26... Rxd8
{[%clk 0:00:09.3]} 27. Bd6 {[%clk 0:00:04.7]} 27... Nf5 {[%clk 0:00:09.6]} 28.
Rd1 {[%clk 0:00:05.2]} 28... Be2 {[%clk 0:00:09.3]} 29. Rd2 {[%clk 0:00:05.4]}
29... Bb5 {[%clk 0:00:08.3]} 30. Be4 {[%clk 0:00:05.1]} 30... Nxd6 {[%clk
0:00:07.8]} 31. exd6 {[%clk 0:00:04.5]} 31... Kf7 {[%clk 0:00:07.6]} 32. Kf2
{[%clk 0:00:05.1]} 32... e5 {[%clk 0:00:07.2]} 33. fxe5 {[%clk 0:00:05.2]} 33...
Ke6 {[%clk 0:00:07.8]} 34. Ke3 {[%clk 0:00:01.8]} 34... Kxe5 {[%clk 0:00:08.3]}
35. d7 {[%clk 0:00:02.1]} 35... Rxd7 {[%clk 0:00:08.5]} 36. Rxd7 {[%clk
0:00:01.9]} 36... Bxd7 {[%clk 0:00:09.4]} 37. h4 {[%clk 0:00:02.5]} 37... Be6
{[%clk 0:00:09]} 38. h5 {[%clk 0:00:02.5]} 38... gxh5 {[%clk 0:00:09.9]} 39.
Bxh7 {[%clk 0:00:03.1]} 39... Bg4 {[%clk 0:00:10]} 40. Be4 {[%clk 0:00:03.6]}
40... Bd1 {[%clk 0:00:09.4]} 41. Bd3 {[%clk 0:00:03.8]} 41... Bg4 {[%clk
0:00:09.3]} 42. Be4 {[%clk 0:00:04.2]} 42... a5 {[%clk 0:00:07.9]} 43. a3 {[%clk
0:00:04.1]} 43... Be6 {[%clk 0:00:05.3]} 44. b4 {[%clk 0:00:04.4]} 44... axb4
{[%clk 0:00:06.2]} 45. axb4 {[%clk 0:00:05.3]} 45... Bf7 {[%clk 0:00:06]} 46.
Bf3 {[%clk 0:00:05.3]} 46... Be8 {[%clk 0:00:04]} 47. Be2 {[%clk 0:00:05.6]}
47... Kd5 {[%clk 0:00:02.6]} 48. Kf4 {[%clk 0:00:06]} 1-0